[Event "Late-Titled-Tuesday-Blitz-January-30-2024"]
[Site "Chess.com"]
[Date "2024.01.30"]
[Round "7"]
[White "SpeedofLight0"]
[Black "Firouzja2003"]
[Result "1-0"]
[WhiteElo "3032"]
[BlackElo "3125"]
[TimeControl "180+1"]
[EndTime "15:17:14 PST"]
[Termination "SpeedofLight0 won by resignation"]

1. d4 {[%clk 0:03:00.9]} 1... Nf6 {[%clk 0:02:59.8]} 2. Nc3 {[%clk 0:03:01]}
2... d5 {[%clk 0:02:58.5]} 3. Bf4 {[%clk 0:03:01.6]} 3... g6 {[%clk 0:02:59]} 4.
Qd2 {[%clk 0:02:59.6]} 4... Bg7 {[%clk 0:02:50.4]} 5. h4 {[%clk 0:02:53.2]} 5...
c5 {[%clk 0:02:47.3]} 6. e3 {[%clk 0:02:30.7]} 6... Nc6 {[%clk 0:02:37.3]} 7.
O-O-O {[%clk 0:02:29.1]} 7... O-O {[%clk 0:02:33.1]} 8. f3 {[%clk 0:02:17.1]}
8... Qa5 {[%clk 0:02:28.4]} 9. g4 {[%clk 0:02:13]} 9... cxd4 {[%clk 0:01:41.4]}
10. exd4 {[%clk 0:02:13.9]} 10... h5 {[%clk 0:01:40.5]} 11. Kb1 {[%clk
0:02:09.8]} 11... Bd7 {[%clk 0:01:34.3]} 12. Bh6 {[%clk 0:02:08.2]} 12... Rac8
{[%clk 0:01:32.9]} 13. Nge2 {[%clk 0:01:59]} 13... Bxh6 {[%clk 0:01:18.7]} 14.
Qxh6 {[%clk 0:01:59.9]} 14... Nb4 {[%clk 0:01:18.8]} 15. a3 {[%clk 0:01:55]}
15... Nxc2 {[%clk 0:01:05.4]} 16. Kxc2 {[%clk 0:01:55.9]} 16... hxg4 {[%clk
0:00:51.7]} 17. h5 {[%clk 0:01:56.2]} 17... Bf5+ {[%clk 0:00:46.6]} 18. Kd2
{[%clk 0:01:55.2]} 18... Qb6 {[%clk 0:00:28.4]} 19. hxg6 {[%clk 0:01:37.2]}
19... fxg6 {[%clk 0:00:28.2]} 20. Nxd5 {[%clk 0:01:37.3]} 20... Qxb2+ {[%clk
0:00:16.6]} 21. Ke1 {[%clk 0:01:37.5]} 21... Kf7 {[%clk 0:00:08.6]} 22. Nxf6
{[%clk 0:01:37.7]} 22... exf6 {[%clk 0:00:04.8]} 23. Qh7+ {[%clk 0:00:59.2]}
23... Ke6 {[%clk 0:00:05.2]} 24. fxg4 {[%clk 0:00:59.5]} 24... Be4 {[%clk
0:00:05.3]} 25. Rh3 {[%clk 0:00:59.4]} 25... Kd6 {[%clk 0:00:03.9]} 26. Re3
{[%clk 0:00:58.2]} 26... Rfe8 {[%clk 0:00:03.5]} 27. Qf7 {[%clk 0:00:52.3]}
27... Re6 {[%clk 0:00:03.7]} 28. Nf4 {[%clk 0:00:47.9]} 28... Rce8 {[%clk
0:00:02.5]} 29. Nxe6 {[%clk 0:00:46.5]} 29... Rxe6 {[%clk 0:00:03.4]} 30. Bc4
{[%clk 0:00:35]} 30... Re7 {[%clk 0:00:03.7]} 31. Qxf6+ {[%clk 0:00:33.8]} 31...
Kd7 {[%clk 0:00:04.6]} 32. Qf4 {[%clk 0:00:26.1]} 32... Qg2 {[%clk 0:00:03.6]}
33. Bf1 {[%clk 0:00:24.7]} 33... Qh1 {[%clk 0:00:03.3]} 34. Rc1 {[%clk
0:00:24.3]} 1-0

[Event "Late-Titled-Tuesday-Blitz-January-30-2024"]
[Site "Chess.com"]
[Date "2024.01.30"]
[Round "7"]
[White "ozates"]
[Black "sjoerd893"]
[Result "1-0"]
[WhiteElo "2628"]
[BlackElo "2494"]
[TimeControl "180+1"]
[EndTime "15:17:14 PST"]
[Termination "ozates won by resignation"]

1. e4 {[%clk 0:03:00.9]} 1... c5 {[%clk 0:02:59.2]} 2. Nc3 {[%clk 0:03:00.1]}
2... Nc6 {[%clk 0:02:58.9]} 3. Bb5 {[%clk 0:03:00]} 3... Nd4 {[%clk 0:02:58.7]}
4. Nf3 {[%clk 0:02:59.6]} 4... a6 {[%clk 0:02:55]} 5. Bc4 {[%clk 0:02:55.9]}
5... Nc6 {[%clk 0:02:48]} 6. a4 {[%clk 0:02:53.4]} 6... g6 {[%clk 0:02:46.4]} 7.
d4 {[%clk 0:02:52.8]} 7... cxd4 {[%clk 0:02:46.5]} 8. Nxd4 {[%clk 0:02:53.7]}
8... Bg7 {[%clk 0:02:46.8]} 9. Be3 {[%clk 0:02:54]} 9... Nf6 {[%clk 0:02:44.4]}
10. Nxc6 {[%clk 0:02:50.7]} 10... bxc6 {[%clk 0:02:43.1]} 11. e5 {[%clk
0:02:50.3]} 11... Nd5 {[%clk 0:02:31.4]} 12. Nxd5 {[%clk 0:02:38.3]} 12... cxd5
{[%clk 0:02:31]} 13. Qxd5 {[%clk 0:02:39]} 13... O-O {[%clk 0:02:15.7]} 14. Qxa8
{[%clk 0:02:33]} 14... Bxe5 {[%clk 0:01:56.7]} 15. O-O {[%clk 0:02:24.6]} 15...
Qc7 {[%clk 0:01:56.6]} 16. Qe4 {[%clk 0:02:19.1]} 16... Bxh2+ {[%clk 0:01:48.7]}
17. Kh1 {[%clk 0:02:19.2]} 17... e6 {[%clk 0:01:45.4]} 18. Qh4 {[%clk
0:02:13.6]} 18... Be5 {[%clk 0:01:43]} 19. c3 {[%clk 0:02:10.9]} 19... Bb7
{[%clk 0:01:42.5]} 20. Bd3 {[%clk 0:02:00]} 20... f5 {[%clk 0:01:39.9]} 21. Bd4
{[%clk 0:01:57.4]} 21... Bf4 {[%clk 0:01:33.9]} 22. Qe7 {[%clk 0:01:48]} 22...
Bh6 {[%clk 0:01:27.6]} 23. Qc5 {[%clk 0:01:38.7]} 23... Qf4 {[%clk 0:01:21.7]}
24. Qe5 {[%clk 0:01:37.6]} 24... Qh4+ {[%clk 0:01:19.7]} 25. Qh2 {[%clk
0:01:29.6]} 25... Qg5 {[%clk 0:01:03.6]} 26. Rae1 {[%clk 0:01:17.3]} 26... Bc6
{[%clk 0:00:56.1]} 27. Re3 {[%clk 0:01:16.6]} 27... Rf7 {[%clk 0:00:42.1]} 28.
Rg3 {[%clk 0:01:08.4]} 28... Qd2 {[%clk 0:00:41.7]} 29. Bxa6 {[%clk 0:00:58.2]}
29... d6 {[%clk 0:00:23.8]} 30. Bb5 {[%clk 0:00:54.5]} 30... Bb7 {[%clk
0:00:17.7]} 31. a5 {[%clk 0:00:46.1]} 31... e5 {[%clk 0:00:15]} 32. Be3 {[%clk
0:00:40.1]} 32... Bxe3 {[%clk 0:00:14.3]} 33. fxe3 {[%clk 0:00:40.3]} 33... Qxb2
{[%clk 0:00:14.3]} 34. Bc4 {[%clk 0:00:38.7]} 34... d5 {[%clk 0:00:14.3]} 35. a6
{[%clk 0:00:29.4]} 35... Bc8 {[%clk 0:00:13.6]} 36. Bxd5 {[%clk 0:00:27.7]} 1-0

[Event "Late-Titled-Tuesday-Blitz-January-30-2024"]
[Site "Chess.com"]
[Date "2024.01.30"]
[Round "7"]
[White "Noki102"]
[Black "ChessSkool"]
[Result "0-1"]
[WhiteElo "2520"]
[BlackElo "2706"]
[TimeControl "180+1"]
[EndTime "15:17:16 PST"]
[Termination "ChessSkool won on time"]

1. d4 {[%clk 0:03:00.9]} 1... d5 {[%clk 0:02:56.3]} 2. Nf3 {[%clk 0:03:01.4]}
2... Nf6 {[%clk 0:02:56.2]} 3. Bf4 {[%clk 0:03:02.1]} 3... c5 {[%clk 0:02:56.3]}
4. e3 {[%clk 0:03:02.4]} 4... cxd4 {[%clk 0:02:57.1]} 5. exd4 {[%clk 0:03:02.1]}
5... Nc6 {[%clk 0:02:57.9]} 6. c3 {[%clk 0:03:01.4]} 6... Bf5 {[%clk 0:02:58.4]}
7. Bd3 {[%clk 0:03:00.6]} 7... Bxd3 {[%clk 0:02:58.7]} 8. Qxd3 {[%clk
0:03:00.8]} 8... e6 {[%clk 0:02:59.6]} 9. Nbd2 {[%clk 0:03:00.5]} 9... Bd6
{[%clk 0:02:59.6]} 10. Bxd6 {[%clk 0:03:00]} 10... Qxd6 {[%clk 0:02:59.5]} 11.
O-O {[%clk 0:03:00.7]} 11... O-O {[%clk 0:03:00]} 12. a4 {[%clk 0:03:00.9]}
12... a6 {[%clk 0:02:56.4]} 13. a5 {[%clk 0:02:58.8]} 13... Qc7 {[%clk
0:02:56.3]} 14. b4 {[%clk 0:02:57.8]} 14... Ne7 {[%clk 0:02:56.8]} 15. Nb3
{[%clk 0:02:54.6]} 15... Ne4 {[%clk 0:02:43.3]} 16. Nc5 {[%clk 0:02:51]} 16...
Nxc5 {[%clk 0:02:43.7]} 17. bxc5 {[%clk 0:02:34.6]} 17... h6 {[%clk 0:02:36]}
18. Rfb1 {[%clk 0:02:30.1]} 18... Nc6 {[%clk 0:02:36.3]} 19. Rb6 {[%clk
0:02:29.6]} 19... Rfd8 {[%clk 0:02:34.4]} 20. g3 {[%clk 0:02:26.7]} 20... Rd7
{[%clk 0:02:32.8]} 21. h4 {[%clk 0:02:23]} 21... Re8 {[%clk 0:02:31.2]} 22. Kg2
{[%clk 0:01:39.4]} 22... e5 {[%clk 0:02:29.4]} 23. dxe5 {[%clk 0:01:34.1]} 23...
Nxe5 {[%clk 0:02:30.3]} 24. Nxe5 {[%clk 0:01:33.7]} 24... Rxe5 {[%clk
0:02:31.1]} 25. c6 {[%clk 0:01:25.7]} 25... bxc6 {[%clk 0:02:11.6]} 26. Rxa6
{[%clk 0:01:25.4]} 26... Re8 {[%clk 0:02:11.6]} 27. Rb1 {[%clk 0:00:44.7]} 27...
g6 {[%clk 0:01:53.9]} 28. Rab6 {[%clk 0:00:38.9]} 28... Ra8 {[%clk 0:01:44.8]}
29. a6 {[%clk 0:00:37.9]} 29... Qd6 {[%clk 0:01:43.6]} 30. Qd4 {[%clk
0:00:31.7]} 30... Kh7 {[%clk 0:01:31.5]} 31. Rb7 {[%clk 0:00:20]} 31... Re7
{[%clk 0:01:19.3]} 32. a7 {[%clk 0:00:14]} 32... c5 {[%clk 0:01:15.7]} 33. Qa4
{[%clk 0:00:07.6]} 33... Qe6 {[%clk 0:01:05.5]} 34. Rxe7 {[%clk 0:00:05.1]}
34... Qxe7 {[%clk 0:01:06.4]} 35. Ra1 {[%clk 0:00:04.3]} 35... Kg7 {[%clk
0:00:45.1]} 36. Qa5 {[%clk 0:00:04.3]} 36... g5 {[%clk 0:00:40]} 37. hxg5 {[%clk
0:00:04]} 37... hxg5 {[%clk 0:00:40.9]} 38. Qb6 {[%clk 0:00:04]} 38... Qe4+
{[%clk 0:00:39.6]} 39. Kg1 {[%clk 0:00:04.3]} 39... Rh8 {[%clk 0:00:39.1]} 40.
f3 {[%clk 0:00:02.3]} 40... Qxf3 {[%clk 0:00:37.7]} 0-1

[Event "Late-Titled-Tuesday-Blitz-January-30-2024"]
[Site "Chess.com"]
[Date "2024.01.30"]
[Round "7"]
[White "AlexeiShirov"]
[Black "ozen_metehan"]
[Result "1-0"]
[WhiteElo "2776"]
[BlackElo "2488"]
[TimeControl "180+1"]
[EndTime "15:17:20 PST"]
[Termination "AlexeiShirov won by resignation"]

1. e4 {[%clk 0:03:00.9]} 1... e6 {[%clk 0:02:54]} 2. d4 {[%clk 0:03:00.1]} 2...
d5 {[%clk 0:02:54.2]} 3. e5 {[%clk 0:03:00.7]} 3... c5 {[%clk 0:02:54.6]} 4. c3
{[%clk 0:03:01.2]} 4... Nc6 {[%clk 0:02:54.9]} 5. Nf3 {[%clk 0:03:01.4]} 5...
Qb6 {[%clk 0:02:55]} 6. Be2 {[%clk 0:02:59.7]} 6... Bd7 {[%clk 0:02:51.3]} 7.
O-O {[%clk 0:02:54.9]} 7... Nge7 {[%clk 0:02:50.1]} 8. dxc5 {[%clk 0:02:53.3]}
8... Qxc5 {[%clk 0:02:49.6]} 9. b4 {[%clk 0:02:50.2]} 9... Qb6 {[%clk
0:02:49.7]} 10. b5 {[%clk 0:02:47.4]} 10... Na5 {[%clk 0:02:48.9]} 11. Be3
{[%clk 0:02:44.3]} 11... Qc7 {[%clk 0:02:48.7]} 12. Bd4 {[%clk 0:02:38.8]} 12...
Nf5 {[%clk 0:02:46.6]} 13. a4 {[%clk 0:02:29.3]} 13... Be7 {[%clk 0:02:43.5]}
14. Bd3 {[%clk 0:02:27.6]} 14... b6 {[%clk 0:02:40.7]} 15. Bxf5 {[%clk
0:02:24.7]} 15... exf5 {[%clk 0:02:41.6]} 16. e6 {[%clk 0:02:22.7]} 16... fxe6
{[%clk 0:02:38.3]} 17. Bxg7 {[%clk 0:02:22.3]} 17... Rg8 {[%clk 0:02:38.6]} 18.
Be5 {[%clk 0:02:21.5]} 18... Bd6 {[%clk 0:02:39.2]} 19. Re1 {[%clk 0:02:06.5]}
19... O-O-O {[%clk 0:02:34.8]} 20. Nbd2 {[%clk 0:02:05.7]} 20... Kb8 {[%clk
0:02:21.2]} 21. Rc1 {[%clk 0:01:55.5]} 21... Be8 {[%clk 0:02:06.7]} 22. Bxd6
{[%clk 0:01:53.9]} 22... Qxd6 {[%clk 0:02:03.9]} 23. Ne5 {[%clk 0:01:48.2]}
23... Rc8 {[%clk 0:02:03.8]} 24. c4 {[%clk 0:01:44.9]} 24... d4 {[%clk
0:01:46.1]} 25. Nd3 {[%clk 0:01:33.3]} 25... Bf7 {[%clk 0:01:21.4]} 26. Qe2
{[%clk 0:01:32]} 26... Rgd8 {[%clk 0:00:59.1]} 27. Qe5 {[%clk 0:01:28.6]} 27...
Qxe5 {[%clk 0:00:59.1]} 28. Rxe5 {[%clk 0:01:27.5]} 28... Nb7 {[%clk 0:00:58.5]}
29. Nb3 {[%clk 0:01:20.3]} 29... Kc7 {[%clk 0:00:48.9]} 30. c5 {[%clk
0:01:18.3]} 30... bxc5 {[%clk 0:00:49]} 31. Nbxc5 {[%clk 0:01:12.1]} 31... Nxc5
{[%clk 0:00:47.9]} 32. Rexc5+ {[%clk 0:01:10.9]} 32... Kb7 {[%clk 0:00:47.8]}
33. a5 {[%clk 0:01:03.1]} 33... Rxc5 {[%clk 0:00:39.8]} 34. Rxc5 {[%clk
0:01:02]} 34... Rc8 {[%clk 0:00:37.3]} 35. f4 {[%clk 0:00:58.4]} 35... Be8
{[%clk 0:00:34.5]} 36. Kf2 {[%clk 0:00:56.5]} 36... Rxc5 {[%clk 0:00:27.3]} 37.
Nxc5+ {[%clk 0:00:55.7]} 37... Kb8 {[%clk 0:00:25.5]} 38. b6 {[%clk 0:00:46.2]}
38... axb6 {[%clk 0:00:25.5]} 39. axb6 {[%clk 0:00:45.6]} 39... Bf7 {[%clk
0:00:19.4]} 40. Ke2 {[%clk 0:00:43.6]} 40... h5 {[%clk 0:00:14.9]} 41. g3 {[%clk
0:00:40.3]} 1-0

[Event "Late-Titled-Tuesday-Blitz-January-30-2024"]
[Site "Chess.com"]
[Date "2024.01.30"]
[Round "7"]
[White "RebecaJimnz"]
[Black "Zq1"]
[Result "0-1"]
[WhiteElo "2299"]
[BlackElo "2497"]
[TimeControl "180+1"]
[EndTime "15:17:20 PST"]
[Termination "Zq1 won by resignation"]

1. e4 {[%clk 0:03:00.9]} 1... c5 {[%clk 0:02:58.9]} 2. Nc3 {[%clk 0:03:00.5]}
2... g6 {[%clk 0:02:57.5]} 3. g3 {[%clk 0:03:01]} 3... Bg7 {[%clk 0:02:57.4]} 4.
Bg2 {[%clk 0:03:01.8]} 4... Nc6 {[%clk 0:02:57.6]} 5. d3 {[%clk 0:03:02.6]} 5...
d6 {[%clk 0:02:55.9]} 6. Be3 {[%clk 0:03:03.2]} 6... b5 {[%clk 0:02:55.4]} 7.
Qd2 {[%clk 0:03:02.9]} 7... b4 {[%clk 0:02:55]} 8. Nd1 {[%clk 0:03:02.9]} 8...
Rb8 {[%clk 0:02:50.8]} 9. Ne2 {[%clk 0:03:02.6]} 9... a5 {[%clk 0:02:50.1]} 10.
O-O {[%clk 0:03:02.7]} 10... h5 {[%clk 0:02:50.2]} 11. h3 {[%clk 0:03:00.8]}
11... Ba6 {[%clk 0:02:45.9]} 12. f4 {[%clk 0:02:57.6]} 12... e6 {[%clk
0:02:40.2]} 13. f5 {[%clk 0:02:50.9]} 13... Ne5 {[%clk 0:02:37.3]} 14. fxe6
{[%clk 0:02:45.9]} 14... fxe6 {[%clk 0:02:36.6]} 15. Nf4 {[%clk 0:02:27.7]}
15... Qe7 {[%clk 0:02:32.2]} 16. Nf2 {[%clk 0:02:13.7]} 16... c4 {[%clk
0:02:31.6]} 17. d4 {[%clk 0:01:58.5]} 17... c3 {[%clk 0:02:31.4]} 18. bxc3
{[%clk 0:01:59.3]} 18... Nc4 {[%clk 0:02:28]} 19. Qc1 {[%clk 0:01:52.1]} 19...
Nxe3 {[%clk 0:02:27.1]} 20. Qxe3 {[%clk 0:01:53]} 20... Bxf1 {[%clk 0:02:22.1]}
21. Rxf1 {[%clk 0:01:53.9]} 21... Bh6 {[%clk 0:02:11.1]} 22. e5 {[%clk
0:01:31.3]} 22... d5 {[%clk 0:02:00.6]} 23. N2d3 {[%clk 0:01:29.5]} 23... bxc3
{[%clk 0:01:49.9]} 24. h4 {[%clk 0:01:02.9]} 24... Rb6 {[%clk 0:01:42.4]} 25.
Bh3 {[%clk 0:00:56.3]} 25... g5 {[%clk 0:01:28.4]} 26. Ng6 {[%clk 0:00:47.8]}
26... gxh4 {[%clk 0:01:27.4]} 27. Qf3 {[%clk 0:00:45.6]} 27... Qg7 {[%clk
0:01:20.6]} 28. Nxh8 {[%clk 0:00:32.7]} 28... Qxg3+ {[%clk 0:01:20.1]} 29. Qxg3
{[%clk 0:00:31.8]} 29... hxg3 {[%clk 0:01:20.6]} 30. Kg2 {[%clk 0:00:17.4]}
30... h4 {[%clk 0:01:04.8]} 31. Ng6 {[%clk 0:00:17.4]} 31... Ne7 {[%clk
0:00:54.7]} 32. Nxh4 {[%clk 0:00:14.9]} 32... Be3 {[%clk 0:00:53.9]} 33. Kxg3
{[%clk 0:00:12.6]} 33... Bxd4 {[%clk 0:00:53]} 34. Ng6 {[%clk 0:00:12.3]} 34...
Nxg6 {[%clk 0:00:51.2]} 35. Rf6 {[%clk 0:00:12.3]} 35... Nxe5 {[%clk 0:00:46.4]}
36. Rxe6+ {[%clk 0:00:10.1]} 36... Rxe6 {[%clk 0:00:45.5]} 37. Bxe6 {[%clk
0:00:10.3]} 37... Nxd3 {[%clk 0:00:45.4]} 38. Bxd5 {[%clk 0:00:10.5]} 38... Nb4
{[%clk 0:00:40.6]} 39. Be4 {[%clk 0:00:09.9]} 39... Nxa2 {[%clk 0:00:40]} 40.
Kf4 {[%clk 0:00:09.2]} 40... Nb4 {[%clk 0:00:37.9]} 41. Bg6+ {[%clk 0:00:09.4]}
41... Kd7 {[%clk 0:00:35.8]} 0-1

[Event "Late-Titled-Tuesday-Blitz-January-30-2024"]
[Site "Chess.com"]
[Date "2024.01.30"]
[Round "7"]
[White "noblerone"]
[Black "lluiss"]
[Result "1-0"]
[WhiteElo "2451"]
[BlackElo "2180"]
[TimeControl "180+1"]
[EndTime "15:17:20 PST"]
[Termination "noblerone won by resignation"]

1. e4 {[%clk 0:03:00.9]} 1... e6 {[%clk 0:02:57.8]} 2. d4 {[%clk 0:02:58.1]}
2... d5 {[%clk 0:02:55.8]} 3. Nd2 {[%clk 0:02:57.7]} 3... Nf6 {[%clk 0:02:51.1]}
4. e5 {[%clk 0:02:52.5]} 4... Nfd7 {[%clk 0:02:50.6]} 5. f4 {[%clk 0:02:51.1]}
5... g6 {[%clk 0:02:48]} 6. Ndf3 {[%clk 0:02:51]} 6... h5 {[%clk 0:02:47.9]} 7.
Be3 {[%clk 0:02:49.6]} 7... b6 {[%clk 0:02:47.9]} 8. Bd3 {[%clk 0:02:48.4]} 8...
Ba6 {[%clk 0:02:47.6]} 9. Ne2 {[%clk 0:02:45.2]} 9... c5 {[%clk 0:02:44.7]} 10.
c3 {[%clk 0:02:43.2]} 10... Bxd3 {[%clk 0:02:43.5]} 11. Qxd3 {[%clk 0:02:44.1]}
11... Be7 {[%clk 0:02:43.4]} 12. O-O-O {[%clk 0:02:38.6]} 12... c4 {[%clk
0:02:41.9]} 13. Qc2 {[%clk 0:02:38.6]} 13... b5 {[%clk 0:02:41.9]} 14. h3 {[%clk
0:02:37.9]} 14... Nc6 {[%clk 0:02:26.1]} 15. g4 {[%clk 0:02:34.5]} 15... b4
{[%clk 0:01:40.9]} 16. f5 {[%clk 0:02:30.1]} 16... gxf5 {[%clk 0:01:40.2]} 17.
gxf5 {[%clk 0:02:29.3]} 17... exf5 {[%clk 0:01:34.1]} 18. Qxf5 {[%clk
0:02:25.7]} 18... bxc3 {[%clk 0:01:22.9]} 19. e6 {[%clk 0:02:12.4]} 19... cxb2+
{[%clk 0:01:21.6]} 20. Kb1 {[%clk 0:02:12.1]} 20... Rf8 {[%clk 0:01:06.4]} 21.
exd7+ {[%clk 0:01:52.3]} 21... Qxd7 {[%clk 0:01:05.9]} 22. Qxd7+ {[%clk
0:01:47.3]} 22... Kxd7 {[%clk 0:01:06.8]} 23. Nc3 {[%clk 0:01:47.2]} 23... Nb4
{[%clk 0:00:44]} 24. Ne1 {[%clk 0:00:58.6]} 24... Kc6 {[%clk 0:00:39.7]} 25. Rf1
{[%clk 0:00:52.1]} 25... f5 {[%clk 0:00:26.5]} 26. Nf3 {[%clk 0:00:47.4]} 26...
Bd6 {[%clk 0:00:22.4]} 27. Ne5+ {[%clk 0:00:42.4]} 27... Bxe5 {[%clk 0:00:22.2]}
28. dxe5 {[%clk 0:00:43.3]} 28... Rad8 {[%clk 0:00:18.8]} 29. Ne2 {[%clk
0:00:40.4]} 29... Nd3 {[%clk 0:00:11.6]} 30. Nd4+ {[%clk 0:00:38.1]} 30... Kd7
{[%clk 0:00:11.8]} 31. Kc2 {[%clk 0:00:37.4]} 31... Rb8 {[%clk 0:00:10.8]} 32.
Rb1 {[%clk 0:00:36]} 32... Nb4+ {[%clk 0:00:11]} 33. Kxb2 {[%clk 0:00:34.1]}
33... Nc6+ {[%clk 0:00:09.5]} 34. Kc3 {[%clk 0:00:33.3]} 34... Nxe5 {[%clk
0:00:10.4]} 35. Rxb8 {[%clk 0:00:29]} 35... Rxb8 {[%clk 0:00:09.6]} 36. Rxf5
{[%clk 0:00:29.9]} 36... Nd3 {[%clk 0:00:06.4]} 37. Rxd5+ {[%clk 0:00:29.4]}
37... Ke7 {[%clk 0:00:05.1]} 38. Nc6+ {[%clk 0:00:28.3]} 1-0

[Event "Late-Titled-Tuesday-Blitz-January-30-2024"]
[Site "Chess.com"]
[Date "2024.01.30"]
[Round "7"]
[White "Atousa"]
[Black "rose107"]
[Result "1-0"]
[WhiteElo "2389"]
[BlackElo "2119"]
[TimeControl "180+1"]
[EndTime "15:17:20 PST"]
[Termination "Atousa won on time"]

1. Nf3 {[%clk 0:03:00.1]} 1... Nf6 {[%clk 0:02:59.6]} 2. e3 {[%clk 0:03:00.6]}
2... d5 {[%clk 0:02:59.4]} 3. b3 {[%clk 0:02:57.7]} 3... c5 {[%clk 0:02:58.3]}
4. Bb2 {[%clk 0:02:57.4]} 4... Nc6 {[%clk 0:02:58.5]} 5. Bb5 {[%clk 0:02:56.7]}
5... e6 {[%clk 0:02:45]} 6. O-O {[%clk 0:02:53.4]} 6... Bd6 {[%clk 0:02:45.2]}
7. d3 {[%clk 0:02:47.9]} 7... O-O {[%clk 0:02:44.7]} 8. Nbd2 {[%clk 0:02:47.4]}
8... Nb8 {[%clk 0:02:35.7]} 9. d4 {[%clk 0:02:47]} 9... Bd7 {[%clk 0:02:30.3]}
10. Bd3 {[%clk 0:02:45.3]} 10... Nc6 {[%clk 0:02:29.9]} 11. dxc5 {[%clk
0:02:44.1]} 11... Bxc5 {[%clk 0:02:29.6]} 12. a3 {[%clk 0:02:45]} 12... h6
{[%clk 0:02:20.8]} 13. b4 {[%clk 0:02:43.1]} 13... Bd6 {[%clk 0:02:21.1]} 14. c4
{[%clk 0:02:43.1]} 14... Rc8 {[%clk 0:02:04]} 15. Qe2 {[%clk 0:02:41.1]} 15...
Ng4 {[%clk 0:01:56]} 16. Rac1 {[%clk 0:02:22]} 16... Nge5 {[%clk 0:01:53.2]} 17.
Bb1 {[%clk 0:02:17.2]} 17... dxc4 {[%clk 0:01:50.2]} 18. Nxc4 {[%clk 0:02:17.1]}
18... Nxc4 {[%clk 0:01:47.9]} 19. Rxc4 {[%clk 0:02:15.3]} 19... Be7 {[%clk
0:01:39.4]} 20. Qd3 {[%clk 0:02:02.1]} 20... f5 {[%clk 0:01:30.6]} 21. Rd1
{[%clk 0:01:45.3]} 21... Be8 {[%clk 0:01:15.9]} 22. Qb3 {[%clk 0:01:45.4]} 22...
Qb6 {[%clk 0:01:10.9]} 23. Ba2 {[%clk 0:01:30.1]} 23... Bf7 {[%clk 0:00:53]} 24.
Ne5 {[%clk 0:01:24.8]} 24... Nxe5 {[%clk 0:00:50.8]} 25. Bxe5 {[%clk 0:01:25.7]}
25... Qb5 {[%clk 0:00:45.4]} 26. Rxc8 {[%clk 0:00:52.8]} 26... Rxc8 {[%clk
0:00:46.3]} 27. Bd4 {[%clk 0:00:52.8]} 27... a5 {[%clk 0:00:31.7]} 28. bxa5
{[%clk 0:00:44.6]} 28... Qxb3 {[%clk 0:00:28.3]} 29. Bxb3 {[%clk 0:00:45.5]}
29... Bxa3 {[%clk 0:00:28]} 30. Kf1 {[%clk 0:00:40.6]} 30... Kf8 {[%clk
0:00:14.2]} 31. Ke2 {[%clk 0:00:38.6]} 31... Bb4 {[%clk 0:00:06.5]} 32. Bb6
{[%clk 0:00:31.1]} 32... Ke7 {[%clk 0:00:06.5]} 33. Ba4 {[%clk 0:00:29.1]} 33...
Be8 {[%clk 0:00:05.7]} 34. Bxe8 {[%clk 0:00:27.2]} 34... Kxe8 {[%clk 0:00:05.3]}
35. Kd3 {[%clk 0:00:24]} 35... Rc6 {[%clk 0:00:02.6]} 36. Rb1 {[%clk 0:00:21.7]}
1-0

[Event "Late-Titled-Tuesday-Blitz-January-30-2024"]
[Site "Chess.com"]
[Date "2024.01.30"]
[Round "7"]
[White "Cubitas"]
[Black "Quattroporte300"]
[Result "1-0"]
[WhiteElo "2731"]
[BlackElo "2411"]
[TimeControl "180+1"]
[EndTime "15:17:21 PST"]
[Termination "Cubitas won by resignation"]

1. Nc3 {[%clk 0:03:00.9]} 1... Nf6 {[%clk 0:02:53.8]} 2. e4 {[%clk 0:02:59.3]}
2... e5 {[%clk 0:02:44.5]} 3. Nf3 {[%clk 0:02:58.7]} 3... Nc6 {[%clk 0:02:43.6]}
4. Bb5 {[%clk 0:02:57.6]} 4... Bb4 {[%clk 0:02:39.1]} 5. O-O {[%clk 0:02:57.4]}
5... O-O {[%clk 0:02:37.2]} 6. d3 {[%clk 0:02:57.4]} 6... Bxc3 {[%clk 0:02:36]}
7. bxc3 {[%clk 0:02:57]} 7... d6 {[%clk 0:02:36.1]} 8. Bg5 {[%clk 0:02:54.3]}
8... h6 {[%clk 0:02:35.8]} 9. Bh4 {[%clk 0:02:54.2]} 9... a6 {[%clk 0:02:28.4]}
10. Bc4 {[%clk 0:02:51.1]} 10... Na5 {[%clk 0:02:24.7]} 11. Bb3 {[%clk
0:02:49.9]} 11... Nxb3 {[%clk 0:02:24.2]} 12. axb3 {[%clk 0:02:50.8]} 12... Qe7
{[%clk 0:02:18.5]} 13. Re1 {[%clk 0:02:50.4]} 13... c6 {[%clk 0:02:09.2]} 14.
Nd2 {[%clk 0:02:40.9]} 14... Kh7 {[%clk 0:02:01.4]} 15. Nc4 {[%clk 0:02:39.8]}
15... Be6 {[%clk 0:01:58.1]} 16. Bxf6 {[%clk 0:02:27.6]} 16... gxf6 {[%clk
0:01:44.9]} 17. Ne3 {[%clk 0:02:20.3]} 17... Rg8 {[%clk 0:01:42.7]} 18. Qf3
{[%clk 0:02:19.3]} 18... Rg6 {[%clk 0:01:27.3]} 19. d4 {[%clk 0:02:09.6]} 19...
Rag8 {[%clk 0:01:26.2]} 20. g3 {[%clk 0:02:01.9]} 20... d5 {[%clk 0:00:56.4]}
21. exd5 {[%clk 0:01:58.3]} 21... cxd5 {[%clk 0:00:54.6]} 22. Nxd5 {[%clk
0:01:55.5]} 22... Qd8 {[%clk 0:00:46]} 23. Ne3 {[%clk 0:01:40.3]} 23... exd4
{[%clk 0:00:41.8]} 24. Rad1 {[%clk 0:01:40.1]} 24... Qc8 {[%clk 0:00:20.6]} 25.
cxd4 {[%clk 0:01:35.3]} 25... f5 {[%clk 0:00:20.8]} 26. d5 {[%clk 0:01:25.1]}
26... Bd7 {[%clk 0:00:21.3]} 27. Qf4 {[%clk 0:01:25]} 27... b5 {[%clk
0:00:18.6]} 28. Rd2 {[%clk 0:01:14]} 28... Qb8 {[%clk 0:00:13.5]} 29. Qxb8
{[%clk 0:01:10.5]} 29... Rxb8 {[%clk 0:00:14.4]} 30. Ng2 {[%clk 0:01:10.2]}
30... Rd6 {[%clk 0:00:12.8]} 31. Nf4 {[%clk 0:01:10]} 31... Kg7 {[%clk
0:00:11.7]} 32. Re7 {[%clk 0:01:04.8]} 32... Kf6 {[%clk 0:00:10.4]} 33. Rde2
{[%clk 0:01:05]} 33... Be6 {[%clk 0:00:08.6]} 34. Ra7 {[%clk 0:00:56.4]} 34...
Bxd5 {[%clk 0:00:08.7]} 35. Rd2 {[%clk 0:00:56.4]} 35... Rbd8 {[%clk 0:00:06.7]}
36. Nxd5+ {[%clk 0:00:52.2]} 36... Rxd5 {[%clk 0:00:06.5]} 37. Rxa6+ {[%clk
0:00:52.8]} 37... Ke5 {[%clk 0:00:05.8]} 38. Re2+ {[%clk 0:00:49.1]} 38... Kd4
{[%clk 0:00:05]} 39. Rxh6 {[%clk 0:00:49.1]} 39... Kc3 {[%clk 0:00:04.8]} 40.
Rc6+ {[%clk 0:00:48.7]} 40... Kb4 {[%clk 0:00:05.4]} 41. Rf6 {[%clk 0:00:48.8]}
41... Rc8 {[%clk 0:00:05.1]} 42. Rxf7 {[%clk 0:00:48]} 42... Rd1+ {[%clk
0:00:01.9]} 43. Kg2 {[%clk 0:00:47.9]} 43... Rcd8 {[%clk 0:00:02.5]} 44. Rxf5
{[%clk 0:00:46.1]} 1-0